bitfinex/quotes_BTCUSD_20251120
["timestamp","ask_amount","ask_price","bid_price","bid_amount"]
[1763645755478,0.00384,91848.0,91844.0,0.01088802]
[1763645755682,0.00384,91855.0,91848.0,0.21775106]
[1763645755892,0.01088423,91876.0,91861.0,0.01088601]
[1763645756249,0.23321526,91878.0,91865.0,0.01088553]
[1763645756250,0.01553464,91875.0,91865.0,0.01088553]
[1763645756481,0.01553464,91875.0,91867.0,0.0108853]
[1763645756678,0.01553464,91894.0,91880.0,0.21767522]
[1763645756889,0.01553464,91894.0,91881.0,0.22855491]
[1763645757097,0.01553464,91894.0,91885.0,0.01088316]
[1763645757280,0.01087926,91918.0,91899.0,0.01088151]
[1763645757819,0.51336439,91950.0,91911.0,0.01088009]
[1763645757820,0.01087784,91930.0,91911.0,0.01088009]
[1763645757827,0.00384,91919.0,91908.0,0.01088044]
[1763645758042,0.0001257,91918.0,91903.0,0.01088103]
[1763645758266,0.0001257,91918.0,91915.0,0.01087961]
[1763645758267,0.01566034,91918.0,91915.0,0.01087961]
[1763645758486,0.0001257,91918.0,91916.0,0.21758997]
[1763645758710,0.0011257,91918.0,91916.0,0.21758997]
[1763645758948,0.0011257,91918.0,91915.0,0.01087961]
[1763645759176,0.0011257,91918.0,91910.0,0.0108802]
[1763645759354,0.0275396,91918.0,91899.0,0.01088151]
[1763645759555,0.01666034,91918.0,91915.0,0.01087961]
[1763645759723,0.0011257,91918.0,91912.0,0.22847764]
[1763645759918,0.0011257,91918.0,91910.0,0.0108802]
[1763645760212,0.0011257,91918.0,91908.0,1.09555145]
[1763645760447,0.0001257,91918.0,91908.0,1.09555145]
[1763645760659,0.0001257,91918.0,91917.0,0.2175876]
[1763645760877,0.0011257,91918.0,91917.0,0.2175876]
[1763645761104,0.00999999,91970.0,91952.0,0.01087523]
[1763645761105,0.01087346,91967.0,91952.0,0.01087523]
[1763645761303,0.04272208,91962.0,91948.0,1.08467101]
[1763645761517,0.01553464,91962.0,91955.0,0.01087488]
[1763645761726,0.0004212,91967.0,91965.0,0.21747343]
[1763645761953,0.0004212,91967.0,91965.0,1.08467101]
[1763645762370,0.0004212,91967.0,91966.0,0.21747167]
[1763645762848,0.0004212,91967.0,91966.0,0.24085167]
[1763645763699,0.0004212,91967.0,91966.0,0.28897019]
[1763645763871,0.0004212,91967.0,91966.0,0.30528358]
[1763645764159,0.0004212,91967.0,91966.0,0.35738607]
[1763645764808,0.0004212,91967.0,91966.0,0.68038607]
[1763645765052,0.00384,92013.0,92011.0,0.21736313]
[1763645765274,0.2173228,92029.0,92011.0,1.08467101]
[1763645765462,0.01086743,92018.0,92011.0,1.08467101]
[1763645765742,0.33386732,92019.0,92011.0,1.08467101]
[1763645765954,0.323,92019.0,92016.0,0.01086767]
[1763645766188,0.21726936,92052.0,92027.0,0.21732745]
[1763645766419,0.01086448,92043.0,92027.0,1.08467101]
[1763645766662,0.01086602,92030.0,92011.0,1.08467101]
[1763645766912,0.01631339,92038.0,92011.0,1.08467101]
[1763645766913,0.0108672,92020.0,92011.0,1.08467101]
[1763645767132,0.00384,92021.0,92011.0,1.08467101]
[1763645767363,0.01086791,92014.0,92011.0,1.08467101]
[1763645767595,0.23289523,92013.0,92011.0,1.08467101]
[1763645767806,0.21736059,92013.0,92011.0,1.08467101]
[1763645768039,0.33853464,92012.0,92011.0,1.08467101]
[1763645768245,0.323,92012.0,92011.0,1.08467101]
[1763645769039,0.54036295,92012.0,92011.0,1.08467101]
[1763645769444,0.01087051,91992.0,91977.0,0.01087228]
[1763645769649,0.01087051,91992.0,91977.0,1.09554329]
[1763645769789,0.01087086,91989.0,91977.0,1.08467101]
[1763645769987,0.01553464,91993.0,91977.0,1.08467101]
[1763645769988,0.00384,92001.0,91992.0,0.01087051]
[1763645770202,0.00384,92001.0,91993.0,0.01087039]
[1763645770401,0.00384,92001.0,91992.0,1.08467101]
[1763645770402,0.01087015,91995.0,91992.0,1.08467101]
[1763645770607,0.0001263,91995.0,91992.0,1.08467101]
[1763645771029,0.0001263,91995.0,91994.0,0.21740548]
[1763645771229,0.0001263,91995.0,91992.0,1.09554152]
[1763645771447,0.0001263,91995.0,91993.0,0.21740593]
[1763645771655,0.0001263,91995.0,91992.0,1.09554152]
[1763645771857,0.21740548,91994.0,91992.0,1.08467101]
[1763645772062,0.21743182,91983.0,91978.0,1.08467101]
[1763645772211,0.22831794,91977.0,91976.0,1.08467101]
[1763645772414,0.323,91968.0,91967.0,1.08467101]
[1763645772705,0.01087476,91956.0,91953.0,1.08467101]
[1763645772895,0.0108737,91965.0,91920.0,0.02338]
[1763645772896,0.21752844,91942.0,91941.0,1.08467101]
[1763645773056,0.01087701,91937.0,91931.0,1.08467101]
[1763645773220,0.01087701,91937.0,91930.0,1.08467101]
[1763645773221,0.01087748,91933.0,91930.0,1.08467101]
[1763645773443,0.01087784,91930.0,91927.0,1.08467101]
[1763645773654,0.217561,91929.0,91927.0,1.08467101]
[1763645773881,0.02719052,91936.0,91927.0,1.08509221]
[1763645773882,0.01631339,91936.0,91927.0,1.08509221]
[1763645774086,0.01087713,91936.0,91927.0,1.08509221]
[1763645774292,0.21756087,91929.0,91927.0,1.08509221]
[1763645774643,0.323,91935.0,91927.0,1.08509221]
[1763645774774,0.01087642,91942.0,91927.0,1.08509221]
[1763645774775,0.01087594,91946.0,91933.0,0.01087748]
[1763645774976,0.02904872,92011.0,91927.0,1.08509221]
[1763645774977,0.01087429,91960.0,91935.0,0.01087725]
[1763645775202,0.01087535,91951.0,91937.0,0.22841728]
[1763645775407,0.01087725,91935.0,91919.0,0.01087914]
[1763645775622,0.01087748,91933.0,91919.0,0.01087914]
[1763645775826,0.01087772,91931.0,91920.0,0.01087902]
[1763645776034,0.01087784,91930.0,91920.0,0.01087902]
[1763645776255,0.01087748,91933.0,91916.0,0.01087949]
[1763645776256,0.01087748,91933.0,91918.0,0.01087926]
[1763645776449,0.01087748,91933.0,91893.0,0.45866053]
[1763645776450,0.02719052,91936.0,91924.0,0.01087855]
[1763645776649,0.01087784,91930.0,91909.0,0.21760503]
[1763645776848,0.01087784,91930.0,91919.0,0.2175818]
[1763645777019,0.01087784,91930.0,91918.0,0.01087926]
[1763645777223,0.21756044,91929.0,91927.0,0.0004212]
[1763645777405,0.21756044,91929.0,91890.0,0.02338]
[1763645777406,0.01088091,91904.0,91896.0,1.08467101]
[1763645777607,0.01088056,91907.0,91896.0,1.08467101]
[1763645777608,0.21760891,91908.0,91901.0,0.00035781]
[1763645777966,0.01467985,91913.0,91904.0,0.21761673]
[1763645777967,0.0038,91913.0,91904.0,0.21761673]
[1763645778125,0.0108802,91910.0,91901.0,0.00035781]
[1763645778328,0.01088032,91909.0,91901.0,0.00035781]
[1763645778535,0.0038,91913.0,91910.0,0.0108802]
[1763645778780,0.0038,91913.0,91901.0,0.00035781]
[1763645778936,0.0038,91913.0,91904.0,0.01088091]
[1763645779136,0.0038,91913.0,91909.0,0.01088032]
[1763645779315,0.0038,91913.0,91910.0,0.0108802]
[1763645779523,0.0038,91913.0,91906.0,1.09555169]
[1763645779724,0.0038,91913.0,91906.0,1.08467101]
[1763645780211,0.0038,91913.0,91906.0,1.09555169]
[1763645780212,0.002,91908.0,91906.0,1.09555169]
[1763645780384,0.002,91908.0,91906.0,1.31316373]
[1763645780622,0.0038,91913.0,91911.0,0.21759975]
[1763645780817,0.0038,91930.0,91921.0,0.0108789]
[1763645781023,0.0038,91930.0,91927.0,0.01087819]
[1763645781234,0.0038,91930.0,91921.0,1.09554991]
[1763645781235,0.0038,91930.0,91922.0,0.03263635]
[1763645781373,0.3268,91930.0,91922.0,0.03263635]
[1763645781586,0.3268,91930.0,91921.0,1.08467101]
[1763645781587,0.21756272,91928.0,91921.0,1.08467101]
[1763645781804,0.0038,91930.0,91928.0,0.2175608]
[1763645781998,0.0038,91930.0,91922.0,0.02175757]
[1763645781999,0.01087559,91949.0,91937.0,0.01087701]
[1763645782204,0.01087583,91947.0,91937.0,1.09554802]
[1763645782414,0.01467559,91949.0,91938.0,0.02175379]
[1763645782626,0.22839837,91945.0,91938.0,0.02175379]
[1763645782827,0.21753674,91939.0,91937.0,1.08467101]
[1763645783095,0.01631339,91938.0,91937.0,1.08467101]
[1763645783935,0.323,91939.0,91937.0,1.08467101]
[1763645784144,0.2175379,91938.0,91937.0,1.08467101]
[1763645784371,0.01087914,91919.0,91918.0,1.08467101]
[1763645784584,0.54438287,91919.0,91918.0,0.0001257]
[1763645784954,0.3268,91919.0,91918.0,0.0001257]
[1763645786010,0.34311339,91919.0,91918.0,0.0001257]
[1763645787275,0.3268,91919.0,91918.0,0.0001257]
[1763645787638,0.3278,91919.0,91918.0,0.0001257]
[1763645787838,0.3268,91919.0,91918.0,0.0001257]
[1763645788345,0.3278,91919.0,91918.0,0.0001257]
[1763645788762,0.3278,91919.0,91901.0,0.00023211]
[1763645788763,0.21762312,91902.0,91901.0,0.00023211]
[1763645789091,0.54068944,91874.0,91873.0,1.08467101]
[1763645789292,0.323,91871.0,91870.0,0.0002]
[1763645789729,0.0038,91880.0,91870.0,0.01108494]
[1763645789939,0.01088459,91873.0,91870.0,0.0002]
[1763645790147,0.323,91871.0,91870.0,0.0002]
[1763645790563,0.373,91871.0,91870.0,0.0002]
[1763645790767,0.333,91871.0,91870.0,0.0002]
[1763645790989,0.323,91871.0,91870.0,0.0002]
[1763645791204,0.01101073,91873.0,91870.0,0.0002]
[1763645791395,0.323,91871.0,91870.0,0.0002]
[1763645791813,0.324,91871.0,91870.0,0.0002]
[1763645792028,0.323,91871.0,91870.0,0.0002]
[1763645794247,0.21759965,91912.0,91898.0,0.21763107]
[1763645794499,0.01088234,91892.0,91875.0,0.01088435]
[1763645794723,0.0108821,91894.0,91884.0,0.01088328]
[1763645794925,0.323,91883.0,91864.0,0.22859763]
[1763645795135,0.323,91883.0,91863.0,1.08847101]
[1763645795136,0.01088423,91876.0,91869.0,0.01088506]
[1763645795353,0.01088447,91874.0,91871.0,0.001]
[1763645795536,0.01088387,91879.0,91871.0,0.001]
[1763645795537,0.5515677,91877.0,91871.0,0.001]
[1763645795900,0.33388411,91877.0,91871.0,0.001]
[1763645795951,0.21769298,91873.0,91871.0,0.001]
[1763645796107,0.01088435,91875.0,91871.0,0.001]
[1763645796309,0.21769204,91873.0,91871.0,0.001]
[1763645796712,0.21769204,91873.0,91853.0,1.08467101]
[1763645796713,0.54069655,91871.0,91853.0,1.08467101]
[1763645796924,0.54069655,91871.0,91855.0,0.01088672]
[1763645797143,0.54069655,91871.0,91853.0,1.08467101]
[1763645797351,0.323,91871.0,91857.0,0.01088648]
[1763645797722,0.323,91871.0,91863.0,0.01088577]
[1763645798142,0.323,91871.0,91865.0,0.22859461]
[1763645798384,0.323,91871.0,91863.0,0.01088577]
[1763645798600,0.323,91871.0,91869.0,0.21769955]
[1763645798803,0.323,91871.0,91870.0,1.08487101]
[1763645799251,0.54069655,91871.0,91870.0,1.08487101]
[1763645799692,0.0038,91880.0,91877.0,0.22856535]
[1763645799908,0.0038,91880.0,91870.0,1.09575595]
[1763645799909,0.01087997,91912.0,91900.0,0.01088139]
[1763645800133,0.01088186,91896.0,91893.0,0.00023211]
[1763645800364,0.21764123,91895.0,91893.0,0.00023211]
[1763645800577,0.0038,91905.0,91897.0,0.22851489]
[1763645800789,0.01088151,91899.0,91893.0,0.00023211]
[1763645801006,0.323,91896.0,91893.0,0.01111433]
[1763645801220,0.01088032,91909.0,91895.0,0.01088198]
[1763645801432,0.01088174,91897.0,91893.0,0.00023211]
[1763645801648,0.01088162,91898.0,91893.0,0.01111433]
[1763645801862,0.33853464,91899.0,91893.0,0.00023211]
[1763645802078,0.21764086,91895.0,91893.0,0.00023211]
[1763645802358,0.01088186,91896.0,91893.0,0.00023211]
[1763645802359,0.323,91896.0,91893.0,0.00023211]
[1763645802569,0.01553464,91894.0,91893.0,0.00023211]
[1763645803018,0.33388186,91896.0,91893.0,0.00023211]
[1763645803227,0.21764206,91894.0,91893.0,0.00023211]
[1763645803503,0.01553464,91895.0,91893.0,0.00023211]
[1763645803504,0.55152108,91896.0,91893.0,0.00023211]
[1763645803709,0.01553464,91895.0,91893.0,0.00023211]
[1763645803883,0.0038,91894.0,91893.0,0.00023211]
[1763645804288,0.34233464,91894.0,91893.0,0.00023211]
[1763645804489,0.54544206,91894.0,91893.0,0.00023211]
[1763645804692,0.3278,91894.0,91893.0,0.00023211]
[1763645804859,0.34805224,91894.0,91893.0,0.00023211]
[1763645805059,0.39805224,91894.0,91893.0,0.00023211]
[1763645805260,0.07405224,91894.0,91893.0,0.00023211]
[1763645805659,0.08958688,91894.0,91893.0,0.00023211]
[1763645806071,0.03958688,91894.0,91893.0,0.00023211]
[1763645806320,0.25722894,91894.0,91893.0,0.00023211]
[1763645806529,0.02405224,91894.0,91893.0,0.00023211]
[1763645806744,0.03958688,91894.0,91893.0,0.00023211]
[1763645807009,0.47411273,91928.0,91893.0,0.00023211]
[1763645807010,0.01087819,91927.0,91910.0,0.0108802]
[1763645807221,0.0038,91916.0,91914.0,0.21759275]
[1763645807639,0.0038,91916.0,91914.0,0.2175947]
[1763645808074,0.0038,91916.0,91911.0,0.21760181]
[1763645808195,0.0038,91916.0,91910.0,1.08467101]
[1763645808636,0.35321413,91916.0,91910.0,1.08467101]
[1763645808833,0.01087961,91915.0,91910.0,1.08467101]
[1763645809044,0.21760071,91912.0,91910.0,1.08467101]
[1763645809233,0.01088009,91911.0,91902.0,1.08467101]
[1763645809439,0.33931339,91908.0,91903.0,0.01088103]
[1763645809660,0.33931339,91908.0,91907.0,0.21761128]
[1763645809943,0.33931339,91908.0,91905.0,0.2176151]
[1763645810115,0.323,91908.0,91904.0,0.01088091]
[1763645810272,0.323,91908.0,91907.0,0.21761128]
[1763645810459,0.0038,91916.0,91913.0,0.01087985]
[1763645810674,0.0038,91916.0,91915.0,0.21759234]
[1763645810893,0.00012631,91922.0,91921.0,0.21757813]
[1763645811720,0.00012631,91922.0,91919.0,0.22846149]
[1763645811959,0.00012631,91922.0,91913.0,1.08467101]
[1763645812164,0.0108789,91921.0,91913.0,1.08467101]
[1763645812366,0.00012631,91922.0,91918.0,0.21758462]
[1763645812566,0.00012631,91922.0,91921.0,0.21757813]
[1763645812766,0.00012631,91922.0,91919.0,0.22846201]
[1763645812965,0.01087914,91919.0,91909.0,0.21760434]
[1763645813166,0.22846303,91919.0,91912.0,0.22847901]
[1763645813329,0.0164397,91922.0,91916.0,0.01087949]
[1763645813530,0.01087938,91917.0,91911.0,0.22848093]
[1763645813725,0.01087938,91917.0,91912.0,0.01087997]
[1763645813937,0.21757813,91921.0,91914.0,0.22847251]
[1763645813938,0.22845703,91921.0,91914.0,0.22847251]
[1763645814135,0.02731848,91922.0,91918.0,0.21758434]
[1763645814136,0.01553464,91920.0,91918.0,0.21758434]
[1763645814771,0.00012631,91922.0,91918.0,0.21758434]
[1763645814772,0.00012631,91922.0,91921.0,0.21757813]
[1763645814987,0.01087914,91919.0,91913.0,1.08467101]
[1763645815190,0.001,91921.0,91913.0,1.08467101]
[1763645815542,0.2175947,91914.0,91913.0,1.08467101]
[1763645815724,0.323,91918.0,91913.0,1.08467101]
[1763645815882,0.323,91918.0,91915.0,0.01087961]
[1763645816082,0.323,91918.0,91916.0,0.21758947]
[1763645816712,0.3348789,91921.0,91913.0,1.09555086]
[1763645816868,0.01087914,91919.0,91914.0,0.01087973]
[1763645817073,0.323,91918.0,91914.0,0.01087973]
[1763645817512,0.01553464,91917.0,91914.0,0.22847357]
[1763645817738,0.00012631,91922.0,91916.0,0.01087949]
[1763645817940,0.00012631,91922.0,91921.0,0.21757813]
[1763645818366,0.00012631,91922.0,91918.0,0.22846449]
[1763645818575,0.00012631,91922.0,91912.0,0.01087997]
[1763645818576,0.01100509,91922.0,91912.0,0.01087997]
[1763645818825,0.01566095,91922.0,91920.0,0.21757914]
[1763645819034,0.00012631,91922.0,91920.0,0.21757914]
[1763645820069,0.00012631,91922.0,91916.0,0.01087949]
[1763645820287,0.00012631,91922.0,91910.0,0.0108802]
[1763645820495,0.01087949,91916.0,91913.0,1.08467101]
[1763645820919,0.01087523,91952.0,91920.0,0.21757937]
[1763645821136,0.01631339,91959.0,91921.0,0.03519]
[1763645821382,0.02011339,91959.0,91946.0,0.01087594]
[1763645821595,0.02027629,91958.0,91956.0,0.21749427]
[1763645821801,0.00042112,91959.0,91958.0,0.21749059]
[1763645822221,0.00042112,91959.0,91956.0,1.08467101]
[1763645822677,0.00142112,91959.0,91956.0,1.31303865]
[1763645822935,0.00142112,91959.0,91956.0,1.09554577]
[1763645823208,0.00142112,91959.0,91956.0,1.08467101]
[1763645823412,0.22978471,91959.0,91956.0,1.08467101]
[1763645823630,0.01087464,91957.0,91944.0,1.08467101]
[1763645823855,0.01087547,91950.0,91944.0,1.08467101]
[1763645824075,0.01087725,91935.0,91934.0,1.08467101]
[1763645824290,0.02641165,91937.0,91934.0,1.08467101]
[1763645824501,0.21754263,91936.0,91934.0,1.08467101]
[1763645824707,0.23385602,91936.0,91934.0,1.08467101]
[1763645824917,0.323,91938.0,91934.0,1.08467101]
[1763645825172,0.2213365,91939.0,91936.0,0.01087713]
[1763645825173,0.0038,91939.0,91936.0,0.01087713]
[1763645825380,0.0038,91943.0,91934.0,1.30221601]
[1763645825584,0.0038,91943.0,91940.0,0.01087665]
[1763645825819,0.0038,91943.0,91941.0,0.21752956]
[1763645826046,0.01631339,91964.0,91957.0,0.21749182]
[1763645826293,0.0038,91960.0,91958.0,0.21749059]
[1763645826512,0.0038,91960.0,91957.0,1.3021632]
[1763645826939,0.01631339,91978.0,91958.0,0.04909]
[1763645827153,0.01467251,91975.0,91958.0,0.01813]
[1763645827370,0.01087393,91963.0,91957.0,1.08467101]
[1763645827584,0.01087405,91962.0,91957.0,1.08467101]
[1763645827793,0.43480344,91996.0,91957.0,1.30216364]
[1763645827999,0.43480344,91996.0,91957.0,1.34869825]
[1763645828000,0.323,91969.0,91957.0,1.34869825]
[1763645828262,0.323,91969.0,91958.0,0.01813]
[1763645828674,0.323,91969.0,91957.0,1.08467101]
[1763645828675,0.01553464,91968.0,91957.0,1.08467101]
[1763645828901,0.0038,91975.0,91958.0,0.21749059]
[1763645828902,0.323,91973.0,91958.0,0.21749059]
[1763645829109,0.01087417,91961.0,91957.0,1.08467101]
[1763645829317,0.21791061,91959.0,91957.0,1.08467101]
[1763645829747,0.01087654,91941.0,91930.0,0.01087784]
[1763645829956,0.01087736,91934.0,91930.0,1.08467101]
[1763645830179,0.323,91955.0,91937.0,0.01087701]
[1763645830381,0.01087512,91953.0,91941.0,0.01087654]
[1763645830599,0.323,91955.0,91952.0,0.01087523]
[1763645830802,0.00042112,91959.0,91958.0,0.21749059]
[1763645830803,0.00422112,91959.0,91958.0,0.21749059]
[1763645831216,0.00042112,91959.0,91958.0,0.21749059]
[1763645832787,0.00042112,91959.0,91958.0,0.26658059]
[1763645832982,0.0038,91993.0,91984.0,0.01087145]
[1763645833155,0.01471248,91993.0,91987.0,0.22829133]
[1763645833376,0.00384209,91993.0,91991.0,0.21741146]
[1763645833578,4.209e-05,91993.0,91991.0,0.21741146]
[1763645833777,0.0108711,91987.0,91979.0,1.08467101]
[1763645833942,4.209e-05,91993.0,91985.0,0.01087133]
[1763645834167,4.209e-05,91993.0,91992.0,0.2174102]
[1763645834371,0.21745071,91993.0,91990.0,1.08467101]
[1763645834579,0.0108711,91987.0,91982.0,0.01087169]
[1763645834783,4.209e-05,91993.0,91992.0,0.2174102]
[1763645836258,0.00419406,92030.0,92008.0,0.33692458]
[1763645836464,0.00419406,92030.0,92019.0,0.23204641]
[1763645836665,0.00419406,92030.0,92019.0,1.31671742]
[1763645836892,0.00419406,92030.0,92019.0,1.34767742]
[1763645837102,0.00419406,92030.0,92019.0,1.45684236]
[1763645837328,0.00419406,92030.0,92019.0,1.34767742]
[1763645837529,0.00419406,92030.0,92019.0,1.31671742]
[1763645837734,0.23238062,92030.0,92019.0,1.32051742]
[1763645837942,0.23238126,92030.0,92019.0,1.32051742]
[1763645838113,0.00419406,92030.0,92019.0,1.32051742]
[1763645838330,0.00419406,92030.0,92029.0,0.2173228]
[1763645838537,0.00432026,92030.0,92029.0,1.30199381]
[1763645838734,0.00432026,92030.0,92029.0,1.44211875]
[1763645838968,0.00432026,92030.0,92029.0,1.46024875]
[1763645839195,0.00432026,92030.0,92029.0,1.51235124]
[1763645839390,0.01086236,92061.0,92056.0,0.01086295]
[1763645839598,0.01086236,92061.0,92059.0,0.01086259]
[1763645839599,0.00042049,92061.0,92059.0,0.01086259]
[1763645839802,0.00042049,92061.0,92060.0,0.23917961]
[1763645840010,0.00042049,92061.0,92060.0,0.27013961]
[1763645840405,0.00131759,92061.0,92060.0,0.23917961]
[1763645840657,0.00131759,92061.0,92058.0,0.01086271]
[1763645840864,0.00042049,92061.0,92060.0,0.23537961]
[1763645841312,0.00042049,92061.0,92060.0,0.26633961]
[1763645841525,0.00042049,92061.0,92058.0,0.2281157]
[1763645841721,0.00042049,92061.0,92058.0,0.01086271]
[1763645841932,0.00042049,92061.0,92056.0,1.08467101]
[1763645842141,0.00042049,92061.0,92057.0,0.01086283]
[1763645842344,0.00042049,92061.0,92058.0,0.01086271]
[1763645842553,0.00042049,92061.0,92056.0,1.09553396]
[1763645842767,0.01086259,92059.0,92056.0,1.08467101]
[1763645842976,0.00042049,92061.0,92058.0,0.01086271]
[1763645843201,0.00042049,92061.0,92060.0,0.21724961]
[1763645843419,0.00042049,92061.0,92060.0,0.23537961]
[1763645843848,0.00042049,92061.0,92060.0,0.26633961]
[1763645844487,0.00042049,92061.0,92060.0,0.21724961]
[1763645845713,0.00042049,92061.0,92060.0,0.23537961]
[1763645845938,0.00042049,92061.0,92060.0,0.26633961]
[1763645846618,0.00042049,92061.0,92058.0,0.01086271]
[1763645846759,0.00042049,92061.0,92060.0,0.01813]
[1763645846962,0.00042049,92061.0,92060.0,0.04909]
[1763645847169,0.0008971,92061.0,92060.0,0.15825494]
[1763645847370,0.01085858,92093.0,92087.0,0.01085929]
[1763645847578,0.323,92088.0,92087.0,1.08467101]
[1763645848044,0.22804521,92087.0,92083.0,0.01085976]
[1763645848245,0.323,92088.0,92085.0,1.09553054]
[1763645848467,0.323,92088.0,92086.0,0.21718663]
[1763645848645,0.00012614,92093.0,92091.0,0.21717477]
[1763645848966,0.00012614,92093.0,92091.0,0.21717463]
[1763645849403,0.00012614,92093.0,92091.0,0.32633957]
[1763645849603,0.00012614,92093.0,92085.0,1.09553054]
[1763645849809,0.00012614,92093.0,92092.0,0.21717413]
[1763645849972,0.00012614,92093.0,92088.0,0.01085917]
[1763645850176,0.00012614,92093.0,92087.0,0.01085929]
[1763645850397,0.21718722,92087.0,92085.0,1.08467101]
[1763645850766,0.00012614,92093.0,92091.0,0.21717574]
[1763645850972,0.00012614,92093.0,92090.0,0.01085894]
[1763645851171,0.00012614,92093.0,92090.0,0.22803581]
[1763645851434,0.00012614,92093.0,92091.0,0.21717531]
[1763645851876,0.2280353,92091.0,92085.0,1.08467101]
[1763645852083,0.0108587,92092.0,92087.0,0.21718478]
[1763645852314,0.01098472,92093.0,92090.0,0.22803649]
[1763645852315,0.00012614,92093.0,92090.0,0.22803649]
[1763645852533,0.00012614,92093.0,92091.0,0.21717439]
[1763645853009,0.00012614,92093.0,92092.0,0.01725]
[1763645853751,0.00012614,92093.0,92091.0,0.21717439]
[1763645853952,0.00012614,92093.0,92089.0,0.22803547]
[1763645853953,0.00012614,92093.0,92089.0,0.01085906]
[1763645854158,0.00012614,92093.0,92090.0,0.2280353]
[1763645854382,0.00012614,92093.0,92091.0,0.21717456]
[1763645855159,0.00012614,92093.0,92091.0,0.21717529]
[1763645855359,0.00012614,92093.0,92092.0,0.04312]
[1763645855773,0.00012614,92093.0,92092.0,0.15228494]
[1763645856012,0.0004,92110.0,92092.0,0.15228494]
[1763645856013,0.0004,92110.0,92107.0,0.01085693]
[1763645856181,0.0004,92110.0,92109.0,0.25069743]
[1763645856610,0.0004,92110.0,92109.0,0.22093404]
[1763645857037,0.0004,92110.0,92109.0,0.21713404]
[1763645857243,0.0004,92110.0,92108.0,0.2171346]
[1763645857447,0.0004,92110.0,92107.0,1.08467101]
[1763645857859,0.0004,92110.0,92107.0,1.09552794]
[1763645858082,0.01125658,92110.0,92107.0,1.08467101]
[1763645858311,0.2171364,92108.0,92107.0,1.08467101]
[1763645858928,0.55644979,92108.0,92107.0,1.08467101]
[1763645859137,0.55780898,92108.0,92107.0,1.08467101]
[1763645860254,0.55880898,92108.0,92107.0,1.08467101]
[1763645860904,0.21716794,92095.0,92093.0,1.08467101]
[1763645861574,0.33931339,92094.0,92093.0,1.08467101]
[1763645861794,0.01085941,92086.0,92082.0,0.01085988]
[1763645862006,0.33931339,92094.0,92088.0,0.01085917]
[1763645862007,0.323,92092.0,92088.0,0.01085917]
[1763645862211,0.22801764,92099.0,92088.0,0.03257752]
[1763645862413,0.323,92100.0,92091.0,0.01085882]
[1763645862625,0.33385953,92085.0,92082.0,0.00012614]
[1763645862834,0.21719299,92084.0,92082.0,0.00012614]
[1763645863267,0.323,92083.0,92082.0,0.00012614]
[1763645864790,0.39531639,92083.0,92082.0,0.00012614]
[1763645865000,0.44531639,92083.0,92082.0,0.00012614]
[1763645865616,0.44631639,92083.0,92082.0,0.00012614]
[1763645866065,0.44531639,92083.0,92082.0,0.00012614]
[1763645866493,0.44631639,92083.0,92082.0,0.00012614]
[1763645866916,0.44695278,92083.0,92082.0,0.00012614]
[1763645867791,0.54026377,92054.0,92053.0,1.08467101]
[1763645868006,0.2281525,92044.0,92040.0,0.01086484]
[1763645868219,0.01086436,92044.0,92040.0,1.09553585]
[1763645868427,0.01086436,92044.0,92040.0,1.08467101]
[1763645868662,0.323,92046.0,92042.0,0.0108646]
[1763645868875,0.323,92046.0,92044.0,0.21728584]
[1763645869273,0.0038,92054.0,92051.0,0.01086354]
[1763645869479,0.0038,92054.0,92043.0,0.01086448]
[1763645869712,0.0038,92054.0,92038.0,0.22816582]
[1763645869713,0.01186413,92046.0,92038.0,0.22816582]
[1763645869914,0.001,92046.0,92045.0,0.21728502]
[1763645870127,0.323,92053.0,92051.0,0.21726953]
[1763645870331,0.323,92053.0,92050.0,0.01086366]
[1763645870532,0.323,92053.0,92051.0,0.21726977]
[1763645871402,0.323,92062.0,92059.0,0.01086259]
[1763645871617,0.323,92054.0,92046.0,0.01086413]
[1763645871823,0.323,92054.0,92049.0,0.01086377]
[1763645872032,0.01086295,92056.0,92049.0,0.01086377]
[1763645872275,0.323,92057.0,92053.0,0.22812881]
[1763645872487,0.22813,92053.0,92044.0,0.01086436]
[1763645872692,0.01086307,92055.0,92052.0,0.21726802]
[1763645872902,0.323,92055.0,92051.0,0.22813238]
[1763645873112,0.54026296,92055.0,92051.0,0.01086354]
[1763645873313,0.323,92055.0,92052.0,0.22813083]
[1763645873523,0.55112525,92055.0,92049.0,0.01086377]
[1763645873733,0.0108633,92053.0,92049.0,0.2172751]
[1763645873939,0.323,92055.0,92051.0,0.22813384]
[1763645874148,0.01186283,92057.0,92051.0,1.09553455]
[1763645874341,0.01086307,92055.0,92051.0,1.09553455]
[1763645874547,0.33386318,92054.0,92051.0,1.09553455]
[1763645874748,0.21726614,92053.0,92051.0,1.08467101]
[1763645874984,0.323,92054.0,92052.0,0.2172685]
[1763645875190,0.21746117,92069.0,92051.0,1.09553455]
[1763645875191,0.00023145,92069.0,92061.0,0.21724725]
[1763645875453,0.323,92068.0,92061.0,1.08467101]
[1763645875557,0.00023145,92069.0,92061.0,1.08467101]
[1763645876431,0.014662,92064.0,92061.0,1.08467101]
[1763645876639,0.0038,92064.0,92061.0,1.08467101]
[1763645876835,0.00112596,92062.0,92061.0,1.08467101]
[1763645877240,0.00012596,92062.0,92061.0,1.08467101]
[1763645877761,0.00012596,92062.0,92061.0,1.30191826]
[1763645878170,0.00012596,92062.0,92061.0,1.34503826]
[1763645878371,0.00012596,92062.0,92061.0,1.4542032]
[1763645878657,0.00012596,92062.0,92061.0,1.47051659]
[1763645878854,0.00023145,92069.0,92068.0,0.01725]
[1763645879072,0.00023145,92069.0,92068.0,0.26415074]
[1763645879280,0.00023145,92069.0,92068.0,0.32548628]
[1763645879481,0.0004,92110.0,92103.0,0.0108574]
[1763645879687,0.0004,92110.0,92108.0,0.21713583]
[1763645879688,0.00052605,92110.0,92108.0,0.21713583]
[1763645879916,0.00052605,92110.0,92106.0,0.01085705]
[1763645880120,0.21713919,92107.0,92104.0,0.22800148]
[1763645880323,0.0108567,92109.0,92105.0,0.01085717]
[1763645880523,0.01085752,92102.0,92095.0,0.01085835]
[1763645880731,0.01553464,92108.0,92095.0,0.01085835]
[1763645880732,0.01553464,92108.0,92099.0,0.01085788]
[1763645880935,0.00052605,92110.0,92108.0,0.21713579]
[1763645881136,0.00052605,92110.0,92108.0,0.2171364]
[1763645881474,0.00052605,92110.0,92109.0,0.01725]
[1763645881682,0.00052605,92110.0,92107.0,0.01085693]
[1763645881888,0.00052605,92110.0,92106.0,1.30181161]
[1763645882083,0.00052605,92110.0,92109.0,0.23438404]
[1763645882498,0.00052605,92110.0,92109.0,0.26106404]
[1763645882921,0.001,92140.0,92129.0,0.21708691]
[1763645883132,0.001,92140.0,92129.0,1.31453792]
[1763645883539,0.001,92140.0,92129.0,1.12902101]